Workbook

Sheet Conts
B2: KeyCare Core | G2: KeyCare Plus | L2: Coastal Core | Q2: Coastal Saver | V2: Essential Delta Core | AA2: Essential Delta Comp | AF2: Classic Delta Comp | AK2: KeyCare Start
B3: Income | G3: Income | L3: Income | Q3: Income | V3: Income | AA3: Income | AF3: Income | AK3: Income
B4: above: | C4: PM | D4: Adult | E4: Child | G4: above: | H4: PM | I4: Adult | J4: Child | L4: above: | M4: PM | N4: Adult | O4: Child | Q4: above: | R4: PM | S4: Adult | T4: Child | V4: above: | W4: PM | X4: Adult | Y4: Child | AA4: above: | AB4: PM | AC4: Adult | AD4: Child | AF4: above: | AG4: PM | AH4: Adult | AI4: Child | AK4: above: | AL4: PM | AM4: Adult | AN4: Child
B5: 0 | C5: 949 | D5: 949 | E5: 245 | G5: 0 | H5: 1207 | I5: 1207 | J5: 439 | L5: 0 | M5: 1946 | N5: 1462 | O5: 774 | Q5: 0 | R5: 2087 | S5: 1570 | T5: 843 | V5: 0 | W5: 1681 | X5: 1265 | Y5: 675 | AA5: 0 | AB5: 3831 | AC5: 3619 | AD5: 769 | AF5: 0 | AG5: 4022 | AH5: 3808 | AI5: 802 | AK5: 0 | AL5: 914 | AM5: 914 | AN5: 550
B6: 8551 | C6: 1183 | D6: 1183 | E6: 292 | G6: 8551 | H6: 1659 | I6: 1659 | J6: 468 | Q6: MSA | R6: 521 | S6: 392 | T6: 210 | AA6: MSA | AB6: 676 | AC6: 638 | AD6: 135 | AF6: MSA | AG6: 1340 | AH6: 1269 | AI6: 267 | AK6: 9151 | AL6: 1538 | AM6: 1538 | AN6: 601
B7: 13801 | C7: 1809 | D7: 1809 | E7: 410 | F7: 13801 | G7: 13801 | H7: 2450 | I7: 2450 | J7: 656 | AK7: 13801 | AL7: 2394 | AM7: 2394 | AN7: 650
B10: Essential Core | G10: Classic Core | L10: Essential Comp | Q10: Classic Comp | V10: Classic Delta Core | AA10: Executive Plan | AF10: Classic Comprehensive Zero MSA
B11: Income | G11: Income | L11: Income | Q11: Income | V11: Income | AA11: Income | AF11: Income
B12: above: | C12: PM | D12: Adult | E12: Child | G12: above: | H12: PM | I12: Adult | J12: Child | L12: above: | M12: PM | N12: Adult | O12: Child | Q12: above: | R12: PM | S12: Adult | T12: Child | V12: above: | W12: PM | X12: Adult | Y12: Child | AA12: above: | AB12: PM | AC12: Adult | AD12: Child | AF12: above: | AG12: PM | AH12: Adult | AI12: Child
B13: 0 | C13: 2104 | D13: 1577 | E13: 846 | G13: 0 | H13: 2449 | I13: 1931 | J13: 980 | L13: 0 | M13: 4253 | N13: 4022 | O13: 857 | Q13: 0 | R13: 4466 | S13: 4225 | T13: 891 | V13: 0 | W13: 1960 | X13: 1545 | Y13: 784 | AA13: 0 | AB13: 5443 | AC13: 5443 | AD13: 1039 | AF13: 0 | AG13: 4466 | AH13: 4225 | AI13: 891
L14: MSA | M14: 750 | N14: 709 | O14: 151 | Q14: MSA | R14: 1488 | S14: 1408 | T14: 297 | AA14: MSA | AB14: 1814 | AC14: 1814 | AD14: 346 | AF14: MSA | AG14: 0 | AH14: 0 | AI14: 0
B16: Classic Saver | G16: Essential Priority | L16: Classic Priority | Q16: Essential Saver | V16: Essential Delta Saver | AA16: THRESHOLD EXEC | AF16: Smart Plan Classic | AK16: Smart Plan Essential
B17: Income | G17: Income | L17: Income | Q17: Income | V17: Income | AA17: Income | AF17: Income | AK17: Income
B18: above: | C18: PM | D18: Adult | E18: Child | G18: above: | H18: PM | I18: Adult | J18: Child | L18: above: | M18: PM | N18: Adult | O18: Child | Q18: above: | R18: PM | S18: Adult | T18: Child | V18: above: | W18: PM | X18: Adult | Y18: Child | AA18: above: | AB18: PM | AC18: Adult | AD18: Child | AF18: above: | AG18: PM | AH18: Adult | AI18: Child | AK18: above: | AL18: PM | AM18: Adult | AN18: Child
B19: 0 | C19: 2468 | D19: 1947 | E19: 989 | G19: 0 | H19: 2787 | I19: 2191 | J19: 1114 | L19: 0 | M19: 2861 | N19: 2256 | O19: 1145 | Q19: 0 | R19: 2223 | S19: 1667 | T19: 891 | V19: 0 | W19: 1773 | X19: 1339 | Y19: 712 | AA19: 0 | AB19: 25300 | AC19: 25300 | AD19: 4800 | AF19: 0 | AG19: 1954 | AH19: 1542 | AI19: 781 | AK19: 0 | AL19: 1400 | AM19: 1400 | AN19: 1400
B20: MSA | C20: 822 | D20: 649 | E20: 329 | G20: MSA | H20: 491 | I20: 386 | J20: 196 | L20: MSA | M20: 953 | N20: 752 | O20: 381 | Q20: MSA | R20: 392 | S20: 294 | T20: 157 | V20: MSA | W20: 312 | X20: 236 | Y20: 125 | AF20: MSA | AG20: 0 | AH20: 0 | AI20: 0 | AK20: MSA | AL20: 0 | AM20: 0 | AN20: 0
B22: Classic Smart Comp | G22: THRESHOLD Classic Smart Comp | L22: THRESHOLD PRIOR | Q22: Overall ATB Limit - PRIOR | V22: Classic Delta Saver | AA22: THRESHOLD CLASSIC,ESSENTIAL,DELTA COMP
B23: Income | G23: Income | L23: Income | Q23: Income | V23: Income | AA23: Income
B24: above: | C24: PM | D24: Adult | E24: Child | G24: above: | H24: PM | I24: Adult | J24: Child | L24: above: | M24: PM | N24: Adult | O24: Child | Q24: above: | R24: PM | S24: Adult | T24: Child | V24: above: | W24: PM | X24: Adult | Y24: Child | AA24: above: | AB24: PM | AC24: Adult | AD24: Child
B25: 0 | C25: 4327 | D25: 3994 | E25: 1378 | G25: 0 | H25: 23900 | I25: 23900 | J25: 800 | L25: 0 | M25: 16900 | N25: 12700 | O25: 5600 | Q25: 0 | R25: 14300 | S25: 10200 | T25: 5000 | V25: 0 | W25: 1971 | X25: 1557 | Y25: 792 | AA25: 0 | AB25: 20850 | AC25: 20850 | AD25: 4000
V26: MSA | W26: 657 | X26: 519 | Y26: 264
B28: Vitality | G28: Vitality Active | L28: Vitality Puple | Q28: KeyFit | V28: Vitality Move Enhancer | AA28: KeyFit Combo | AF28: Vitality Active
B29: 0 | C29: 280 | G29: 0 | H29: 89 | L29: 0 | M29: 429 | Q29: 0 | R29: 60 | V29: 0 | W29: 39 | AA29: 0 | AB29: 310 | AF29: 0 | AG29: 65
B30: 1 | C30: 340 | G30: 1 | H30: =H29+79 -> 168 | L30: 1 | M30: 495 | Q30: 1 | R30: 75 | V30: 1 | W30: 39 | AA30: 1 | AB30: 375 | AF30: 1 | AG30: 65
B31: 2 | C31: 395 | G31: 2 | H31: =H30+79 -> 247 | L31: 2 | M31: 539 | Q31: 2 | R31: 90 | V31: 2 | W31: 39 | AA31: 2 | AB31: 420 | AF31: 2 | AG31: 65
C32: =VLOOKUP((IF(Children="",0,Children)+IF(Adults="",0,Adults)),Vitality,2) -> 280 | H32: =VLOOKUP((IF(Children="",0,Children)+IF(Adults="",0,Adults)),Vit_Act,2) -> 89 | M32: =VLOOKUP((IF(Children="",0,Children)+IF(Adults="",0,Adults)),Vit_Pur,2) -> 429 | R32: =VLOOKUP((IF(Children="",0,Children)+IF(Adults="",0,Adults)),KeyFit,2) -> 60 | W32: =VLOOKUP(IF(Adults="",0,Adults),Vitality_Move_Enhancer,2) -> 39 | AB32: =VLOOKUP((IF(Children="",0,Children)+IF(Adults="",0,Adults)),KeyFit_Combo,2) -> 310 | AG32: =VLOOKUP((IF(Children="",0,Children)+IF(Adults="",0,Adults)),Vit_Act2,2) -> 65

Sheet Quote
B2: Core Contribution Quote:
B3: KeyCare Core | C3: KeyCare Plus | D3: KeyCare Start | E3: Essential Delta Core | F3: Classic Delta Core | G3: Essential Delta Saver | H3: Classic Delta Saver | I3: Coastal Core | J3: Coastal Saver | K3: Essential Core | L3: Classic Core | M3: Essential Delta Comp | N3: Essential Comp | O3: Classic Comp Zero MSA | P3: Classic Delta Comp | Q3: Classic Comp | R3: Executive Plan | S3: Classic Saver | T3: Essential Priority | U3: Classic Priority | V3: Classic Smart Comp | W3: Essential Saver | X3: Classic Smart | Y3: Essential Smart
B4: KeyCareCore | C4: KeyCarePlus | D4: KeyCareStart | E4: EssenDeltaCore | F4: ClassicDeltaCore | G4: EssenDeltaSaver | H4: ClassicDeltaSaver | I4: CoastalCore | J4: CoastalSaver | K4: EssenCore | L4: ClassicCore | M4: EssenDeltaComp | N4: EssenComp | O4: ClassicCompZeroMSA | P4: ClassicDeltaComp | Q4: ClassicComp | R4: ExecPlan | S4: ClassicSaver | T4: EssenPriority | U4: ClassicPriority | V4: ClassicSmart | W4: EssenSaver | X4: Smart_Clas | Y4: Smart_Essen
B5: =IF('Calculation Sheet'!$J$11="R 0 - R 8 550",VLOOKUP(0,INDIRECT(B4),2)+IF(Adults="",0,Adults)*VLOOKUP(0,INDIRECT(B4),3)+IF(Children="",0,MIN(Children,3))*VLOOKUP(0,INDIRECT(B4),4),IF(OR('Calculation Sheet'!$J$11="R 8 551 - R 9 150",'Calculation Sheet'!$J$11="R 9 151 - R 13 800"),VLOOKUP(8551,INDIRECT(B4),2)+IF(Adults="",0,Adults)*VLOOKUP(8551,INDIRECT(B4),3)+IF(Children="",0,MIN(Children,3))*VLOOKUP(8551,INDIRECT(B4),4),IF('Calculation Sheet'!$J$11="R 13 801 +",VLOOKUP(13801,INDIRECT(B4),2)+IF(Adults="",0,Adults)*VLOOKUP(13801,INDIRECT(B4),3)+IF(Children="",0,MIN(Children,3))*VLOOKUP(13801,INDIRECT(B4),4),"ERROR"))) -> ERROR | C5: =IF('Calculation Sheet'!$J$11="R 0 - R 8 550",VLOOKUP(0,INDIRECT(C4),2)+IF(Adults="",0,Adults)*VLOOKUP(0,INDIRECT(C4),3)+IF(Children="",0,MIN(Children,3))*VLOOKUP(0,INDIRECT(C4),4),IF(OR('Calculation Sheet'!$J$11="R 8 551 - R 9 150",'Calculation Sheet'!$J$11="R 9 151 - R 13 800"),VLOOKUP(8551,INDIRECT(C4),2)+IF(Adults="",0,Adults)*VLOOKUP(8551,INDIRECT(C4),3)+IF(Children="",0,MIN(Children,3))*VLOOKUP(8551,INDIRECT(C4),4),IF('Calculation Sheet'!$J$11="R 13 801 +",VLOOKUP(13801,INDIRECT(C4),2)+IF(Adults="",0,Adults)*VLOOKUP(13801,INDIRECT(C4),3)+IF(Children="",0,MIN(Children,3))*VLOOKUP(13801,INDIRECT(C4),4),"ERROR"))) -> ERROR | D5: =IF(OR('Calculation Sheet'!$J$11="R 0 - R 8 550",'Calculation Sheet'!$J$11="R 8 551 - R 9 150"),VLOOKUP(0,INDIRECT(D4),2)+IF(Adults="",0,Adults)*VLOOKUP(0,INDIRECT(D4),3)+IF(Children="",0,MIN(Children,3))*VLOOKUP(0,INDIRECT(D4),4),IF('Calculation Sheet'!$J$11="R 9 151 - R 13 800",VLOOKUP(9151,INDIRECT(D4),2)+IF(Adults="",0,Adults)*VLOOKUP(9151,INDIRECT(D4),3)+IF(Children="",0,MIN(Children,3))*VLOOKUP(9151,INDIRECT(D4),4),IF('Calculation Sheet'!$J$11="R 13 801 +",VLOOKUP(13801,INDIRECT(D4),2)+IF(Adults="",0,Adults)*VLOOKUP(13801,INDIRECT(D4),3)+IF(Children="",0,MIN(Children,3))*VLOOKUP(13801,INDIRECT(D4),4),"ERROR"))) -> ERROR | E5: =VLOOKUP(0,INDIRECT(E4),2)+IF(Adults="",0,Adults)*VLOOKUP(0,INDIRECT(E4),3)+MIN(IF(Children="",0,Children),3)*VLOOKUP(0,INDIRECT(E4),4) -> 1681 | F5: 1960 | G5: 1773 | H5: 1971 | I5: 1946 | J5: 2087 | K5: 2104 | L5: 2449 | M5: 3831 | N5: 4253 | O5: 4466 | P5: 4022 | Q5: 4466 | R5: 5443 | S5: 2468 | T5: 2787 | U5: 2861 | V5: =VLOOKUP(0,INDIRECT(V4),2)+IF(Adults="",0,Adults)*VLOOKUP(0,INDIRECT(V4),3)+MIN(IF(Children="",0,Children),3)*VLOOKUP(0,INDIRECT(V4),4) -> 4327 | W5: 2223 | X5: =VLOOKUP(0,INDIRECT(X4),2)+IF(Adults="",0,Adults)*VLOOKUP(0,INDIRECT(X4),3)+MIN(IF(Children="",0,Children),3)*VLOOKUP(0,INDIRECT(X4),4) -> 1954 | Y5: =VLOOKUP(0,INDIRECT(Y4),2)+IF(Adults="",0,Adults)*VLOOKUP(0,INDIRECT(Y4),3)+MIN(IF(Children="",0,Children),3)*VLOOKUP(0,INDIRECT(Y4),4) -> 1400
B7: Savings Quote:
B8: KeyCare Core | C8: KeyCare Plus | D8: KeyCare Start | E8: Essential Delta Core | F8: Classic Delta Core | G8: Essential Delta Saver | H8: Classic Delta Saver | I8: Coastal Core | J8: Coastal Saver | K8: Essential Core | L8: Classic Core | M8: Essential Delta Comp | N8: Essential Comp | O8: =O3 -> Classic Comp Zero MSA | P8: Classic Delta Comp | Q8: Classic Comp | R8: Executive Plan | S8: Classic Saver | T8: Essential Priority | U8: Classic Priority | V8: Classic Smart Comp | W8: Essential Saver | X8: =X3 -> Classic Smart | Y8: =Y3 -> Essential Smart
B9: KeyCareCore | C9: KeyCarePlus | D9: KeyCareStart | E9: EssenDeltaCore | F9: ClassicDeltaCore | G9: EssenDeltaSaver | H9: ClassicDeltaSaver | I9: CoastalCore | J9: CoastalSaver | K9: EssenCore | L9: ClassicCore | M9: EssenDeltaComp | N9: EssenComp | O9: =O4 -> ClassicCompZeroMSA | P9: ClassicDeltaComp | Q9: ClassicComp | R9: ExecPlan | S9: ClassicSaver | T9: EssenPriority | U9: ClassicPriority | V9: ClassicSmart | W9: EssenSaver | X9: =X4 -> Smart_Clas | Y9: =Y4 -> Smart_Essen
B10: N/A | C10: N/A | D10: N/A | E10: N/A | F10: N/A | G10: =(VLOOKUP("MSA",INDIRECT(G4),2,FALSE)+IF(Adults="",0,Adults)*VLOOKUP("MSA",INDIRECT(G4),3,FALSE)+MIN(IF(Children="",0,Children),3)*VLOOKUP("MSA",INDIRECT(G4),4,FALSE))*IF('Calculation Sheet'!$J$9="",12,VLOOKUP('Calculation Sheet'!$J$9,'Calculation Sheet'!$U$42:$V$53,2,FALSE)) -> 3744 | H10: =(VLOOKUP("MSA",INDIRECT(H4),2,FALSE)+IF(Adults="",0,Adults)*VLOOKUP("MSA",INDIRECT(H4),3,FALSE)+MIN(IF(Children="",0,Children),3)*VLOOKUP("MSA",INDIRECT(H4),4,FALSE))*IF('Calculation Sheet'!$J$9="",12,VLOOKUP('Calculation Sheet'!$J$9,'Calculation Sheet'!$U$42:$V$53,2,FALSE)) -> 7884 | I10: N/A | J10: =(VLOOKUP("MSA",INDIRECT(J4),2,FALSE)+IF(Adults="",0,Adults)*VLOOKUP("MSA",INDIRECT(J4),3,FALSE)+MIN(IF(Children="",0,Children),3)*VLOOKUP("MSA",INDIRECT(J4),4,FALSE))*IF('Calculation Sheet'!$J$9="",12,VLOOKUP('Calculation Sheet'!$J$9,'Calculation Sheet'!$U$42:$V$53,2,FALSE)) -> 6252 | K10: N/A | L10: N/A | M10: =(VLOOKUP("MSA",INDIRECT(M4),2,FALSE)+IF(Adults="",0,Adults)*VLOOKUP("MSA",INDIRECT(M4),3,FALSE)+MIN(IF(Children="",0,Children),3)*VLOOKUP("MSA",INDIRECT(M4),4,FALSE))*IF('Calculation Sheet'!$J$9="",12,VLOOKUP('Calculation Sheet'!$J$9,'Calculation Sheet'!$U$42:$V$53,2,FALSE)) -> 8112 | N10: =(VLOOKUP("MSA",INDIRECT(N4),2,FALSE)+IF(Adults="",0,Adults)*VLOOKUP("MSA",INDIRECT(N4),3,FALSE)+MIN(IF(Children="",0,Children),3)*VLOOKUP("MSA",INDIRECT(N4),4,FALSE))*IF('Calculation Sheet'!$J$9="",12,VLOOKUP('Calculation Sheet'!$J$9,'Calculation Sheet'!$U$42:$V$53,2,FALSE)) -> 9000 | O10: =(VLOOKUP("MSA",INDIRECT(O4),2,FALSE)+IF(Adults="",0,Adults)*VLOOKUP("MSA",INDIRECT(O4),3,FALSE)+MIN(IF(Children="",0,Children),3)*VLOOKUP("MSA",INDIRECT(O4),4,FALSE))*IF('Calculation Sheet'!$J$9="",12,VLOOKUP('Calculation Sheet'!$J$9,'Calculation Sheet'!$U$42:$V$53,2,FALSE)) -> 0 | P10: =(VLOOKUP("MSA",INDIRECT(P4),2,FALSE)+IF(Adults="",0,Adults)*VLOOKUP("MSA",INDIRECT(P4),3,FALSE)+MIN(IF(Children="",0,Children),3)*VLOOKUP("MSA",INDIRECT(P4),4,FALSE))*IF('Calculation Sheet'!$J$9="",12,VLOOKUP('Calculation Sheet'!$J$9,'Calculation Sheet'!$U$42:$V$53,2,FALSE)) -> 16080 | Q10: =(VLOOKUP("MSA",INDIRECT(Q4),2,FALSE)+IF(Adults="",0,Adults)*VLOOKUP("MSA",INDIRECT(Q4),3,FALSE)+MIN(IF(Children="",0,Children),3)*VLOOKUP("MSA",INDIRECT(Q4),4,FALSE))*IF('Calculation Sheet'!$J$9="",12,VLOOKUP('Calculation Sheet'!$J$9,'Calculation Sheet'!$U$42:$V$53,2,FALSE)) -> 17856 | R10: =(VLOOKUP("MSA",INDIRECT(R4),2,FALSE)+IF(Adults="",0,Adults)*VLOOKUP("MSA",INDIRECT(R4),3,FALSE)+MIN(IF(Children="",0,Children),3)*VLOOKUP("MSA",INDIRECT(R4),4,FALSE))*IF('Calculation Sheet'!$J$9="",12,VLOOKUP('Calculation Sheet'!$J$9,'Calculation Sheet'!$U$42:$V$53,2,FALSE)) -> 21768 | S10: =(VLOOKUP("MSA",INDIRECT(S4),2,FALSE)+IF(Adults="",0,Adults)*VLOOKUP("MSA",INDIRECT(S4),3,FALSE)+MIN(IF(Children="",0,Children),3)*VLOOKUP("MSA",INDIRECT(S4),4,FALSE))*IF('Calculation Sheet'!$J$9="",12,VLOOKUP('Calculation Sheet'!$J$9,'Calculation Sheet'!$U$42:$V$53,2,FALSE)) -> 9864 | T10: =(VLOOKUP("MSA",INDIRECT(T4),2,FALSE)+IF(Adults="",0,Adults)*VLOOKUP("MSA",INDIRECT(T4),3,FALSE)+MIN(IF(Children="",0,Children),3)*VLOOKUP("MSA",INDIRECT(T4),4,FALSE))*IF('Calculation Sheet'!$J$9="",12,VLOOKUP('Calculation Sheet'!$J$9,'Calculation Sheet'!$U$42:$V$53,2,FALSE)) -> 5892 | U10: =(VLOOKUP("MSA",INDIRECT(U4),2,FALSE)+IF(Adults="",0,Adults)*VLOOKUP("MSA",INDIRECT(U4),3,FALSE)+MIN(IF(Children="",0,Children),3)*VLOOKUP("MSA",INDIRECT(U4),4,FALSE))*IF('Calculation Sheet'!$J$9="",12,VLOOKUP('Calculation Sheet'!$J$9,'Calculation Sheet'!$U$42:$V$53,2,FALSE)) -> 11436 | V10: 0 | W10: =(VLOOKUP("MSA",INDIRECT(W4),2,FALSE)+IF(Adults="",0,Adults)*VLOOKUP("MSA",INDIRECT(W4),3,FALSE)+MIN(IF(Children="",0,Children),3)*VLOOKUP("MSA",INDIRECT(W4),4,FALSE))*IF('Calculation Sheet'!$J$9="",12,VLOOKUP('Calculation Sheet'!$J$9,'Calculation Sheet'!$U$42:$V$53,2,FALSE)) -> 4704 | X10: =(VLOOKUP("MSA",INDIRECT(X4),2,FALSE)+IF(Adults="",0,Adults)*VLOOKUP("MSA",INDIRECT(X4),3,FALSE)+MIN(IF(Children="",0,Children),3)*VLOOKUP("MSA",INDIRECT(X4),4,FALSE))*IF('Calculation Sheet'!$J$9="",12,VLOOKUP('Calculation Sheet'!$J$9,'Calculation Sheet'!$U$42:$V$53,2,FALSE)) -> 0 | Y10: =(VLOOKUP("MSA",INDIRECT(Y4),2,FALSE)+IF(Adults="",0,Adults)*VLOOKUP("MSA",INDIRECT(Y4),3,FALSE)+MIN(IF(Children="",0,Children),3)*VLOOKUP("MSA",INDIRECT(Y4),4,FALSE))*IF('Calculation Sheet'!$J$9="",12,VLOOKUP('Calculation Sheet'!$J$9,'Calculation Sheet'!$U$42:$V$53,2,FALSE)) -> 0
B11: Threshold Quote:
B12: No Threshold | C12: No Threshold | D12: No Threshold | E12: No Threshold | F12: No Threshold | G12: No Threshold | H12: No Threshold | I12: No Threshold | J12: No Threshold | K12: No Threshold | L12: No Threshold | M12: =((VLOOKUP(0,THRESHOLD_COMP,2)+IF(Adults="",0,Adults)*VLOOKUP(0,THRESHOLD_COMP,3)+MIN(IF(Children="",0,Children),3)*VLOOKUP(0,THRESHOLD_COMP,4)))*IF('Calculation Sheet'!$J$9="",12/12,(VLOOKUP('Calculation Sheet'!$J$9,'Calculation Sheet'!$U$42:$W$53,3,FALSE)/12)) -> 20850 | N12: =((VLOOKUP(0,THRESHOLD_COMP,2)+IF(Adults="",0,Adults)*VLOOKUP(0,THRESHOLD_COMP,3)+MIN(IF(Children="",0,Children),3)*VLOOKUP(0,THRESHOLD_COMP,4)))*IF('Calculation Sheet'!$J$9="",12/12,(VLOOKUP('Calculation Sheet'!$J$9,'Calculation Sheet'!$U$42:$W$53,3,FALSE)/12)) -> 20850 | O12: =((VLOOKUP(0,THRESHOLD_COMP,2)+IF(Adults="",0,Adults)*VLOOKUP(0,Threshold,3)+MIN(IF(Children="",0,Children),3)*VLOOKUP(0,Threshold,4)))*IF('Calculation Sheet'!$J$9="",12/12,(VLOOKUP('Calculation Sheet'!$J$9,'Calculation Sheet'!$U$42:$W$53,3,FALSE)/12)) -> 20850 | P12: =((VLOOKUP(0,THRESHOLD_COMP,2)+IF(Adults="",0,Adults)*VLOOKUP(0,THRESHOLD_COMP,3)+MIN(IF(Children="",0,Children),3)*VLOOKUP(0,THRESHOLD_COMP,4)))*IF('Calculation Sheet'!$J$9="",12/12,(VLOOKUP('Calculation Sheet'!$J$9,'Calculation Sheet'!$U$42:$W$53,3,FALSE)/12)) -> 20850 | Q12: =((VLOOKUP(0,THRESHOLD_COMP,2)+IF(Adults="",0,Adults)*VLOOKUP(0,THRESHOLD_COMP,3)+MIN(IF(Children="",0,Children),3)*VLOOKUP(0,THRESHOLD_COMP,4)))*IF('Calculation Sheet'!$J$9="",12/12,(VLOOKUP('Calculation Sheet'!$J$9,'Calculation Sheet'!$U$42:$W$53,3,FALSE)/12)) -> 20850 | R12: =((VLOOKUP(0,Threshold_Exec,2)+IF(Adults="",0,Adults)*VLOOKUP(0,Threshold_Exec,3)+MIN(IF(Children="",0,Children),3)*VLOOKUP(0,Threshold_Exec,4)))*IF('Calculation Sheet'!$J$9="",12/12,(VLOOKUP('Calculation Sheet'!$J$9,'Calculation Sheet'!$U$42:$W$53,3,FALSE)/12)) -> 25300 | S12: No Threshold | T12: =((VLOOKUP(0,Threshold_P,2)+IF(Adults="",0,Adults)*VLOOKUP(0,Threshold_P,3)+MIN(IF(Children="",0,Children),3)*VLOOKUP(0,Threshold_P,4)))*IF('Calculation Sheet'!$J$9="",12/12,(VLOOKUP('Calculation Sheet'!$J$9,'Calculation Sheet'!$U$42:$W$53,3,FALSE)/12)) -> 16900 | U12: =((VLOOKUP(0,Threshold_P,2)+IF(Adults="",0,Adults)*VLOOKUP(0,Threshold_P,3)+MIN(IF(Children="",0,Children),3)*VLOOKUP(0,Threshold_P,4)))*IF('Calculation Sheet'!$J$9="",12/12,(VLOOKUP('Calculation Sheet'!$J$9,'Calculation Sheet'!$U$42:$W$53,3,FALSE)/12)) -> 16900 | V12: =((VLOOKUP(0,Threshold,2)+IF(Adults="",0,Adults)*VLOOKUP(0,Threshold,3)+MIN(IF(Children="",0,Children),3)*VLOOKUP(0,Threshold,4)))*IF('Calculation Sheet'!$J$9="",12/12,(VLOOKUP('Calculation Sheet'!$J$9,'Calculation Sheet'!$U$42:$W$53,3,FALSE)/12)) -> 23900 | W12: No Threshold | X12: No Threshold | Y12: No Threshold
B13: SPG:
B14: N/A | C14: N/A | D14: N/A | E14: N/A | F14: N/A | G14: N/A | H14: N/A | I14: N/A | J14: N/A | K14: N/A | L14: N/A | M14: =M12-M10 -> 12738 | N14: 11850 | O14: 20850 | P14: 4770 | Q14: 2994 | R14: 3532 | S14: N/A | T14: =T12-T10 -> 11008 | U14: =U12-U10 -> 5464 | V14: =V12-V10 -> 23900 | W14: N/A | X14: N/A | Y14: N/A
B15: Overall ATB Limit
B16: N/A | C16: N/A | D16: N/A | E16: N/A | F16: N/A | G16: N/A | H16: N/A | I16: N/A | J16: N/A | K16: N/A | L16: N/A | M16: N/A | N16: N/A | O16: N/A | P16: N/A | Q16: N/A | R16: N/A | S16: N/A | T16: =((VLOOKUP(0,Threshold_P_ATB,2)+IF(Adults="",0,Adults)*VLOOKUP(0,Threshold_P_ATB,3)+MIN(IF(Children="",0,Children),3)*VLOOKUP(0,Threshold_P_ATB,4)))*IF('Calculation Sheet'!$J$9="",12/12,(VLOOKUP('Calculation Sheet'!$J$9,'Calculation Sheet'!$U$42:$W$53,3,FALSE)/12)) -> 14300 | U16: =((VLOOKUP(0,Threshold_P_ATB,2)+IF(Adults="",0,Adults)*VLOOKUP(0,Threshold_P_ATB,3)+MIN(IF(Children="",0,Children),3)*VLOOKUP(0,Threshold_P_ATB,4)))*IF('Calculation Sheet'!$J$9="",12/12,(VLOOKUP('Calculation Sheet'!$J$9,'Calculation Sheet'!$U$42:$W$53,3,FALSE)/12)) -> 14300 | V16: N/A | W16: N/A | X16: N/A | Y16: N/A
B19: None | C19: Vitality Move | D19: Vitality Active | E19: Vitality Active (Over 30 yo) | F19: Vitality | G19: KeyFit | H19: KeyFit Combo | I19: Vitality Purple
B20: 0 | C20: =Conts!W32 -> 39 | D20: =Conts!H32 -> 89 | E20: =Conts!AG32 -> 65 | F20: =Conts!C32 -> 280 | G20: =Conts!R32 -> 60 | H20: =Conts!AB32 -> 310 | I20: =Conts!M32 -> 429

Sheet Calculation Sheet
B4: Q: | C4: Ancillary service fee applicable? (For groups of 35 or fewer members.)
B7: Q: | C7: Select an option for 2020
B9: Q: | C9: Select the date at which you joined the medical scheme
B11: =IF(OR(Option="KeyCare Core",Option="KeyCare Plus",Option="KeyCare Start"),"Q:","") ->  | C11: =IF(OR(Option="KeyCare Core",Option="KeyCare Plus",Option="KeyCare Start"),"Monthly income?","") -> 
B13: Q: | C13: Please indicate the number of adult dependants ?
B15: Q: | C15: Please indicate the number of children under 21
B17: Q: | C17: Which lifestyle product would you like to include?
H20: Annual Threshold = | J20: =IF(OR(Option="",HealthProd=""),"",HLOOKUP(Option,Savings2,5,FALSE)) -> 
H22: Annual MSA = | J22: =IF(OR(Option="",HealthProd=""),"",HLOOKUP(Option,Savings1,3,FALSE)) -> 
H24: =IF(J20="N/A","","Self Payment Gap =") -> Self Payment Gap = | J24: =IF(OR(Option="",HealthProd=""),"",IF(HLOOKUP(Option,Savings3,7,FALSE)<0,0,HLOOKUP(Option,Savings3,7,FALSE))) -> 
H26: =IF(J20="N/A","","Overall ATB Limit =") -> Overall ATB Limit = | J26: =IF(OR(Option="",HealthProd=""),"",HLOOKUP(Option,Savings4,9,FALSE)) -> 
J30: 2020 Contribution
H32: Risk Premium: | J32: =IF(OR(Option="",HealthProd=""),"",HLOOKUP(Option,TotalCore,3,FALSE)) -> 
H33: MSA: | J33: =IF(OR(Option="",HealthProd=""),"",IF(J22="N/A","-",ROUNDDOWN(J22/VLOOKUP($J$9,$U$42:$V$53,2,FALSE),0))) -> 
H36: Total Medical Scheme Contribution | J36: =IF(J32="","",SUM(J32:J34)) -> 
H38: =IF(OR(HealthProd="none",HealthProd=""),"Lifestyle",HealthProd)&" Premium:" -> Lifestyle Premium: | J38: =IF(OR(Option="",HealthProd=""),"",HLOOKUP(HealthProd,Quote!B19:I20,2,FALSE)) -> 
H41: Total Contribution | J41: =IF(J32="","",SUM(J36:J38)) ->  | Q41: 2016 | S41: Income Band | T41: Vitality List | U41: Date Joined | V41: MSA | W41: ATB
Q42: KeyCare Core | R42: Core | S42: R 0 - R 8 550 | T42: None | U42: 2020-01-01 | V42: 12 | W42: 12
C43: Whilst all reasonable care has been taken, Alexander Forbes will not be held responsible for any errors or omissions herein. | Q43: KeyCare Start | R43: Core | S43: R 8 551 - R 9 150 | T43: Vitality Move | U43: 2020-02-01 | V43: 11 | W43: 11
Q44: KeyCare Plus | R44: Core | S44: R 9 151 - R 13 800 | T44: Vitality Active | U44: 2020-03-01 | V44: 10 | W44: 10
Q45: Coastal Core | R45: Core | S45: R 13 801 + | T45: KeyFit | U45: 2020-04-01 | V45: 9 | W45: 9
Q46: Essential Delta Core | R46: Core | T46: KeyFit Combo | U46: 2020-05-01 | V46: 8 | W46: 8
Q47: Essential Core | R47: Core | T47: Vitality | U47: 2020-06-01 | V47: 7 | W47: 7
Q48: Classic Delta Core | R48: Core | T48: Vitality Purple | U48: 2020-07-01 | V48: 6 | W48: 6
Q49: Classic Core | R49: Core | U49: 2020-08-01 | V49: 5 | W49: 5
Q50: Classic Smart | R50: Core | U50: 2020-09-01 | V50: 4 | W50: 4
Q51: Essential Smart | R51: Core | U51: 2020-10-01 | V51: 3 | W51: 3
Q52: Coastal Saver | R52: Core | U52: 2020-11-01 | V52: 2 | W52: 2
Q53: Essential Delta Saver | R53: Core | U53: 2020-12-01 | V53: 1 | W53: 1
Q54: Essential Saver | R54: Core
Q55: Classic Delta Saver | R55: Core
Q56: Classic Saver | R56: Core
Q57: Essential Priority | R57: Comp
Q58: Classic Priority | R58: Comp
Q59: Essential Delta Comp | R59: Comp
Q60: Essential Comp | R60: Comp
Q61: Classic Delta Comp | R61: Comp
Q62: Classic Comp | R62: Comp
Q63: Classic Smart Comp | R63: Comp
Q64: Executive Plan | R64: Comp
